lending/lending_fUSD_20250224
["ID","MTS","AMOUNT","RATE_DAILY","PERIOD"]
[354245018,1740363039282,-2493.84,0.00016438,2]
[354245020,1740363039292,-1576.94,0.00016438,2]
[354245022,1740363039301,-500.0,0.00016438,2]
[354245024,1740363039310,-503.4369176,0.00016438,2]
[354245026,1740363039320,-1574.95,0.00016438,2]
[354245028,1740363039329,-617.01,0.00016438,2]
[354245030,1740363039339,-613.74,0.00016438,2]
[354245032,1740363039350,-1238.43,0.00016438,2]
[354245034,1740363039359,-502.9613207,0.00016438,2]
[354245036,1740363039368,-5191.94,0.00016438,2]
[354245038,1740363039378,-2353.12,0.00016438,2]
[354245040,1740363039387,-501.48008127,0.00016438,2]
[354245042,1740363039395,-2778.04,0.00016438,2]
[354245044,1740363039405,-500.0,0.00016438,2]
[354245046,1740363039414,-532.59968155,0.00016438,2]
[354245048,1740363039423,-3003.75,0.00016438,2]
[354245050,1740363039432,-1650.25,0.00016438,2]
[354245052,1740363039442,-1906.81,0.00016438,2]
[354245054,1740363039451,-500.0,0.00016438,2]
[354245056,1740363039460,-503.63371144,0.00016438,2]
[354245058,1740363039469,-500.0,0.00016438,2]
[354245059,1740363039478,-2341.06,0.00016438,2]
[354245061,1740363039487,-1484.37,0.00016438,2]
[354245063,1740363039497,-768.99,0.00016438,2]
[354245065,1740363039506,-500.0,0.00016438,2]
[354245067,1740363039515,-2705.51,0.00016438,2]
[354245069,1740363039525,-1486.4,0.00016438,2]
[354245071,1740363039534,-2616.42,0.00016438,2]
[354245073,1740363039543,-500.0,0.00016438,2]
[354245075,1740363039552,-1626.91,0.00016438,2]
[354245077,1740363039561,-500.0,0.00016438,2]
[354245079,1740363039572,-500.0,0.00016438,2]
[354245081,1740363039583,-1275.86,0.00016438,2]
[354245083,1740363039592,-2074.74,0.00016438,2]
[354245085,1740363039601,-3247.15,0.00016438,2]
[354245087,1740363039610,-500.0,0.00016438,2]
[354245089,1740363039620,-2608.7,0.00016438,2]
[354245091,1740363039630,-1000.0,0.00016438,2]
[354245093,1740363039639,-1505.88,0.00016438,2]
[354245095,1740363039649,-525.91,0.00016438,2]
[354245097,1740363039658,-5108.06,0.00016438,2]
[354245099,1740363039668,-2276.49,0.00016438,2]
[354245101,1740363039679,-502.75558654,0.00016438,2]
[354245103,1740363039688,-1988.68,0.00016438,2]
[354245105,1740363039697,-2841.47,0.00016438,2]
[354245106,1740363039707,-504.4283524,0.00016438,2]
[354245107,1740363039716,-1915.39,0.00016438,2]
[354245108,1740363039726,-500.0,0.00016438,2]
[354245109,1740363039735,-500.0,0.00016438,2]
[354245110,1740363039745,-1386.23,0.00016438,2]
[354245111,1740363039755,-500.0,0.00016438,2]
[354245112,1740363039764,-815.21741576,0.00016438,2]
[354245184,1740363040402,-548.31228062,0.00016354,2]
[354245187,1740363040414,-68.82393012,0.00016354,2]
[354245189,1740363040424,-218.83258424,0.00016438,2]
[354245191,1740363040434,-500.0,0.00016438,2]
[354245193,1740363040444,-1680.94,0.00016438,2]
[354245195,1740363040454,-500.0,0.00016438,2]
[354245197,1740363040463,-2015.67,0.00016438,2]
[354245199,1740363040472,-503.50807571,0.00016438,2]
[354245201,1740363040482,-61.02540993,0.00016438,2]
[354245203,1740363040493,-1031.6,0.00016438,2]
[354245205,1740363040506,-1653.61459007,0.00016438,2]
[354245207,1740363040515,-2132.24,0.00016438,2]
[354245209,1740363040524,-505.78014866,0.00016438,2]
[354245211,1740363040534,-745.34,0.00016438,2]
[354245213,1740363040544,-616.93,0.00016438,2]
[354245215,1740363040554,-500.0,0.00016438,2]
[354245217,1740363040563,-166.71474127,0.00016438,2]
[354245219,1740363040577,-413.08525873,0.00016438,2]
[354245220,1740363040587,-820.34230728,0.00016438,2]
[354245221,1740363040603,-1780.22769272,0.00016438,2]
[354245222,1740363040613,-500.0,0.00016438,2]
[354245223,1740363040623,-2830.11,0.00016438,2]
[354245224,1740363040633,-500.0,0.00016438,2]
[354245226,1740363040642,-500.0,0.00016438,2]
[354245228,1740363040654,-1597.6,0.00016438,2]
[354245230,1740363040663,-151.0,0.00016438,2]
[354245232,1740363040673,-152.117436,0.00016438,2]
[354245234,1740363040683,-500.0,0.00016438,2]
[354245236,1740363040692,-505.91337189,0.00016438,2]
[354245238,1740363040702,-2278.79,0.00016438,2]
[354245240,1740363040712,-1001.09,0.00016438,2]
[354245242,1740363040721,-586.02149948,0.00016438,2]
[354245244,1740363040734,-276.32850052,0.00016438,2]
[354245246,1740363040744,-2050.35,0.00016438,2]
[354245248,1740363040754,-578.94,0.00016438,2]
[354245250,1740363040764,-1179.14,0.00016438,2]
[354245253,1740363040774,-961.39,0.00016438,2]
[354245255,1740363040783,-550.21,0.00016438,2]
[354245257,1740363040794,-500.0,0.00016438,2]
[354245259,1740363040804,-500.0,0.00016438,2]
[354245261,1740363040814,-1075.36,0.00016438,2]
[354245263,1740363040824,-824.57,0.00016438,2]
[354245265,1740363040834,-500.0,0.00016438,2]
[354245266,1740363040847,-953.75,0.00016438,2]
[354245268,1740363040856,-670.56,0.00016438,2]
[354245270,1740363040866,-773.73,0.00016438,2]
[354245272,1740363040876,-279.83090395,0.00016438,2]
[354245274,1740363040885,-917.88276166,0.00016438,2]
[354245302,1740363041153,-749.9699998,0.00016438,2]
[354245303,1740363041165,-637.71723854,0.00016438,2]
[354245304,1740363041174,-15.70534034,0.00016438,2]
[354245305,1740363041252,-484.29465966,0.00016438,2]
[354245306,1740363041262,-1425.83,0.00016438,2]
[354245307,1740363041271,-123.99508435,0.00016438,2]
[354245309,1740363041282,-1118.36491565,0.00016438,2]
[354245310,1740363041291,-730.74,0.00016438,2]
[354245312,1740363041299,-1030.74,0.00016438,2]
[354245314,1740363041308,-868.94,0.00016438,2]
[354245316,1740363041317,-1120.33,0.00016438,2]
[354245317,1740363041327,-646.31,0.00016438,2]
[354245319,1740363041336,-708.68,0.00016438,2]
[354245321,1740363041346,-999.02,0.00016438,2]
[354245323,1740363041355,-3314.79,0.00016438,2]
[354245325,1740363041365,-1089.57,0.00016438,2]
[354245326,1740363041375,-500.0,0.00016438,2]
[354245327,1740363041384,-569.93,0.00016438,2]
[354245328,1740363041393,-158.211958,0.00016438,2]
[354245329,1740363041403,-872.81,0.00016438,2]
[354245330,1740363041412,-930.28,0.00016438,2]
[354245331,1740363041421,-500.0,0.00016438,2]
[354245332,1740363041430,-500.0,0.00016438,2]
[354245333,1740363041439,-1051.69382766,0.00016438,2]
[354245334,1740363041450,-509.12211876,0.00016438,2]
[354245335,1740363041461,-756.84405358,0.00016438,2]
[354245336,1740363041470,-2444.41,0.00016438,2]
[354245337,1740363041479,-1555.07,0.00016438,2]
[354245338,1740363041487,-500.0,0.00016438,2]
[354245339,1740363041497,-1065.27,0.00016438,2]
[354245340,1740363041506,-3022.34,0.00016438,2]
[354245341,1740363041515,-151.0,0.00016438,2]
[354245342,1740363041523,-2486.82,0.00016438,2]
[354245343,1740363041533,-18.24594642,0.00016438,2]
[354245344,1740363041544,-132.75405358,0.00016438,2]
[354245345,1740363041553,-151.0,0.00016438,2]
[354245346,1740363041561,-151.520994,0.00016438,2]
[354245347,1740363041571,-151.0,0.00016438,2]
[354245348,1740363041584,-395.83630068,0.00016438,2]
[354245349,1740363041601,-104.16369932,0.00016438,2]
[354245350,1740363041610,-151.0,0.00016438,2]
[354245351,1740363041621,-500.0,0.00016438,2]
[354245352,1740363041630,-931.9,0.00016438,2]
[354245353,1740363041639,-1095.68,0.00016438,2]
[354245354,1740363041648,-500.0,0.00016438,2]
[354245355,1740363041657,-1678.87,0.00016438,2]
[354245356,1740363041666,-500.0,0.00016438,2]
[354245357,1740363041675,-501.15265856,0.00016438,2]
[354245358,1740363041684,-1023.41,0.00016438,2]
[354245359,1740363041693,-2438.28,0.00016438,2]
[354245360,1740363041703,-500.0,0.00016438,2]
[354245361,1740363041711,-332.84644081,0.00016438,2]
[354245362,1740363042052,-1003.17,0.00016436,2]
[354245363,1740363042061,-488.88355919,0.00016438,2]
[354245364,1740363042072,-525.10913616,0.00016438,2]
[354245365,1740363042111,-671.46123176,0.00016438,2]
[354245404,1740363045975,-1551.13,0.00013663,2]
[354245405,1740363045985,-1551.13,0.00015927,2]
[354245406,1740363045994,-617.13621074,0.00016384,2]
[354245407,1740363046003,-617.13621074,0.00016413,2]
[354245408,1740363046013,-5.36963208,0.00016438,2]
[354245409,1740363046022,-500.0,0.00016438,2]
[354245410,1740363046032,-500.0,0.00016438,2]
[354245411,1740363046042,-489.55526573,0.00016438,2]
[354245412,1740363046052,-2017.83,0.00016438,2]
[354245413,1740363046061,-891.93,0.00016438,2]
[354245414,1740363046072,-1664.48,0.00016438,2]
[354245415,1740363046081,-2222.14,0.00016438,2]
[354245416,1740363046090,-1544.47,0.00016438,2]
[354245417,1740363046099,-1981.9,0.00016438,2]
[354245418,1740363046108,-500.0,0.00016438,2]
[354245419,1740363046117,-500.0,0.00016438,2]
[354245420,1740363046126,-2230.18,0.00016438,2]
[354245421,1740363046136,-1175.99,0.00016438,2]
[354245422,1740363046146,-2589.5,0.00016438,2]
[354245423,1740363046156,-4202.48,0.00016438,2]
[354245424,1740363046165,-1304.18,0.00016438,2]
[354245425,1740363046175,-860.2,0.00016438,2]
[354245426,1740363046184,-500.0,0.00016438,2]
[354245427,1740363046193,-500.0,0.00016438,2]
[354245428,1740363046202,-1335.84,0.00016438,2]
[354245429,1740363046212,-500.0,0.00016438,2]
[354245430,1740363046221,-3552.55,0.00016438,2]
[354245431,1740363046230,-796.08,0.00016438,2]
[354245432,1740363046239,-1154.43,0.00016438,2]
[354245433,1740363046248,-500.0,0.00016438,2]
[354245434,1740363046258,-1186.63,0.00016438,2]
[354245435,1740363046267,-500.0,0.00016438,2]
[354245436,1740363046276,-500.0,0.00016438,2]
[354245437,1740363046285,-151.0,0.00016438,2]
[354245438,1740363046294,-151.0,0.00016438,2]
[354245439,1740363046303,-2832.23,0.00016438,2]
[354245440,1740363046312,-151.0,0.00016438,2]
[354245441,1740363046321,-1235.01,0.00016438,2]
[354245442,1740363046330,-163.868986,0.00016438,2]
[354245443,1740363046339,-3401.9197214,0.0001644,2]
[354245444,1740363046349,-500.0,0.00016468,2]
[354245445,1740363046358,-2000.0,0.00016468,2]
[354245446,1740363046367,-500.0,0.00016468,2]
[354245447,1740363046376,-500.0,0.00016468,2]
[354245448,1740363046385,-200.0,0.00016468,2]
[354245449,1740363046394,-500.0,0.00016468,2]
[354245450,1740363046403,-151.0,0.000165,2]
[354245451,1740363046412,-1100.0,0.000165,6]
[354245452,1740363046421,-3157.78219349,0.000165,2]
[354245453,1740363046433,-9701.44376633,0.000165,2]
[354245454,1740363046442,-224.82285295,0.000165,2]
[354245455,1740363046452,-185.2457893,0.000165,2]
[354245456,1740363046462,-500.0,0.00016519,2]
[354245457,1740363046472,-500.0,0.00016519,2]
[354245458,1740363046481,-1477.0,0.0001652,2]
[354245459,1740363046490,-567.85,0.0001652,2]
[354245460,1740363046501,-500.0,0.0001652,2]
[354245461,1740363046510,-500.0,0.0001652,2]
[354245462,1740363046520,-500.0,0.0001652,2]
[354245463,1740363046529,-500.0,0.0001652,2]
[354245464,1740363046538,-776.61,0.0001652,2]
[354245465,1740363046547,-500.0,0.0001652,2]
[354245466,1740363046556,-500.0,0.0001652,2]
[354245467,1740363046565,-500.0,0.0001652,2]
[354245468,1740363046577,-500.0,0.0001652,2]
[354245469,1740363046587,-500.0,0.0001652,2]
[354245470,1740363046596,-528.02,0.0001652,2]
[354245471,1740363046606,-501.03,0.0001652,2]
[354245472,1740363046616,-579.23,0.0001652,2]
[354245473,1740363046626,-500.0,0.0001652,2]
[354245474,1740363046635,-500.0,0.0001652,2]
[354245475,1740363046645,-507.43,0.0001652,2]
[354245476,1740363046657,-504.83144259,0.0001652,2]
[354245477,1740363046666,-500.0,0.0001652,2]
[354245478,1740363046675,-500.0,0.0001652,2]
[354245479,1740363046684,-500.0,0.0001652,2]
[354245480,1740363046693,-712.28,0.0001652,2]
[354245481,1740363046702,-500.0,0.0001652,2]
[354245482,1740363046711,-506.18922178,0.0001652,2]
[354245483,1740363046721,-500.0,0.0001652,2]
[354245484,1740363046730,-500.0,0.0001652,2]
[354245485,1740363046739,-723.91,0.0001652,2]
[354245486,1740363046748,-503.57551246,0.0001652,2]
[354245487,1740363046757,-664.48,0.0001652,2]
[354245488,1740363046767,-500.0,0.0001652,2]
[354245489,1740363046777,-500.0,0.0001652,2]
[354245490,1740363046786,-602.53,0.0001652,2]
[354245491,1740363046795,-500.0,0.0001652,2]
[354245492,1740363046805,-500.0,0.0001652,2]
[354245493,1740363046815,-500.0,0.0001652,2]
[354245494,1740363046824,-500.0,0.0001652,2]
[354245495,1740363046834,-500.0,0.0001652,2]
[354245496,1740363046844,-500.0,0.0001652,2]
[354245497,1740363046854,-500.0,0.0001652,2]
[354245498,1740363046864,-500.0,0.0001652,2]
[354245499,1740363046873,-613.17,0.0001652,2]
[354245500,1740363046882,-500.0,0.0001652,2]
[354245501,1740363046892,-500.0,0.0001652,2]
[354245502,1740363046901,-1046.78,0.0001652,2]
[354245503,1740363046910,-534.07,0.0001652,2]
[354245504,1740363046919,-500.0,0.0001652,2]
[354245505,1740363046928,-200.243438,0.0001652,2]
[354245506,1740363046937,-320.28746263,0.0001652,2]
[354245507,1740363047235,-179.71253737,0.0001652,2]
[354245508,1740363047245,-792.81,0.0001652,2]
[354245509,1740363047254,-500.0,0.0001652,2]
[354245510,1740363047263,-500.0,0.0001652,2]
[354245511,1740363047272,-503.68365693,0.0001652,2]
[354245512,1740363047281,-500.0,0.0001652,2]
[354245513,1740363047290,-489.56895724,0.0001652,2]
[354245514,1740363047300,-500.0,0.0001652,2]
[354245515,1740363047309,-500.0,0.0001652,2]
[354245516,1740363047318,-793.97,0.0001652,2]
[354245517,1740363047327,-669.31,0.0001652,2]
[354245518,1740363047335,-151.0,0.0001652,2]
[354245519,1740363047344,-863.13,0.0001652,2]
[354245520,1740363047354,-151.0,0.0001652,2]
[354245521,1740363047363,-180.497489,0.0001652,2]
[354245522,1740363047372,-550.7,0.0001652,2]
[354245523,1740363047382,-500.0,0.0001652,2]
[354245524,1740363047391,-1108.72,0.0001652,2]
[354245525,1740363047401,-500.0,0.0001652,2]
[354245526,1740363047410,-500.0,0.0001652,2]
[354245527,1740363047419,-500.0,0.0001652,2]
[354245528,1740363047429,-500.0,0.0001652,2]
[354245529,1740363047438,-344.15,0.0001652,2]
[354245530,1740363047446,-504.52472633,0.0001652,2]
[354245531,1740363047455,-260.475512,0.0001652,2]
[354245532,1740363047464,-600.50613136,0.0001652,2]
[354245533,1740363047472,-1246.28,0.0001652,2]
[354245534,1740363047481,-500.0,0.0001652,2]
[354245535,1740363047490,-589.88,0.0001652,2]
[354245536,1740363047499,-1841.59,0.0001652,2]
[354245537,1740363047508,-500.0,0.0001652,2]
[354245538,1740363047730,-562.94,0.0001652,2]
[354245539,1740363047739,-500.0,0.0001652,2]
[354245540,1740363047749,-500.0,0.0001652,2]
[354245541,1740363047758,-500.0,0.0001652,2]
[354245542,1740363047767,-500.0,0.0001652,2]
[354245543,1740363047776,-1086.46,0.0001652,2]
[354245544,1740363047785,-500.0,0.0001652,2]
[354245545,1740363047794,-500.0,0.0001652,2]
[354245546,1740363047803,-1419.12,0.0001652,2]
[354245547,1740363047813,-500.0,0.0001652,2]
[354245548,1740363047822,-512.52,0.0001652,2]
[354245549,1740363047832,-500.0,0.0001652,2]
[354245550,1740363047841,-500.0,0.0001652,2]
[354245551,1740363047852,-726.39,0.0001652,2]
[354245552,1740363047860,-500.0,0.0001652,2]
[354245553,1740363047869,-500.0,0.0001652,2]
[354245554,1740363047879,-500.0,0.0001652,2]
[354245555,1740363047889,-500.0,0.0001652,2]
[354245556,1740363047899,-500.0,0.0001652,2]
[354245557,1740363047908,-1292.05,0.0001652,2]
[354245558,1740363047917,-864.62,0.0001652,2]
[354245559,1740363047930,-500.0,0.0001652,2]
[354245560,1740363047938,-500.0,0.0001652,2]
[354245561,1740363047948,-660.57,0.0001652,2]
[354245562,1740363047958,-500.0,0.0001652,2]
[354245563,1740363047967,-503.49286972,0.0001652,2]
[354245564,1740363047977,-744.67,0.0001652,2]
[354245565,1740363047986,-859.54,0.0001652,2]
[354245566,1740363047995,-500.0,0.0001652,2]
[354245567,1740363048004,-504.13863229,0.0001652,2]
[354245568,1740363048014,-707.73,0.0001652,2]
[354245569,1740363048024,-500.0,0.0001652,2]
[354245570,1740363048034,-553.3,0.0001652,2]
[354245571,1740363048043,-711.62,0.0001652,2]
[354245572,1740363048053,-676.94,0.0001652,2]
[354245573,1740363048062,-500.0,0.0001652,2]
[354245574,1740363048072,-500.0,0.0001652,2]
[354245575,1740363048081,-157.9430963,0.0001652,2]
[354245576,1740363048090,-930.64,0.0001652,2]
[354245577,1740363048099,-1091.84,0.0001652,2]
[354245578,1740363048108,-956.72,0.0001652,2]
[354245579,1740363048118,-502.39450551,0.0001652,2]
[354245580,1740363048128,-504.08130415,0.0001652,2]
[354245581,1740363048137,-1322.01,0.0001652,2]
[354245582,1740363048147,-500.0,0.0001652,2]
[354245583,1740363048156,-988.29,0.0001652,2]
[354245584,1740363048165,-556.18,0.0001652,2]
[354245585,1740363048175,-500.0,0.0001652,2]
[354245586,1740363048184,-617.47,0.0001652,2]
[354245587,1740363048194,-503.5115654,0.0001652,2]
[354245588,1740363048203,-500.0,0.0001652,2]
[354245589,1740363048214,-151.0,0.0001652,2]
[354245590,1740363048223,-523.03,0.0001652,2]
[354245591,1740363048232,-151.0,0.0001652,2]
[354245592,1740363048241,-151.0,0.0001652,2]
[354245593,1740363048251,-434.56441209,0.0001652,2]
[354245594,1740363048266,-65.43558791,0.0001652,2]
[354245595,1740363048275,-303.15975059,0.0001652,2]
[354245596,1740363048291,-329.968208,0.0001652,2]
[354245597,1740363048303,-38.68204141,0.0001652,2]
[354245598,1740363048312,-500.0,0.0001652,2]
[354245599,1740363048323,-527.09606844,0.0001652,2]
[354245600,1740363048334,-302.33586944,0.0001652,2]
[354245601,1740363048343,-500.0,0.0001652,2]
[354245602,1740363048354,-522.82,0.0001652,2]
[354245603,1740363048370,-500.0,0.0001652,2]
[354245604,1740363048380,-510.06,0.0001652,2]
[354245605,1740363048389,-500.0,0.0001652,2]
[354245606,1740363048399,-99.00602071,0.0001652,2]
[354245607,1740363048410,-400.99397929,0.0001652,2]
[354245608,1740363048420,-500.0,0.0001652,2]
[354245609,1740363048429,-826.67,0.0001652,2]
[354245610,1740363048439,-500.0,0.0001652,2]
[354245611,1740363048449,-937.17,0.0001652,2]
[354245612,1740363048459,-505.44152118,0.0001652,2]
[354245613,1740363048468,-500.0,0.0001652,2]
[354245614,1740363048477,-652.16,0.0001652,2]
[354245615,1740363048487,-500.0,0.0001652,2]
[354245616,1740363048497,-745.2,0.0001652,2]
[354245617,1740363048507,-500.0,0.0001652,2]
[354245618,1740363048517,-835.19,0.0001652,2]
[354245619,1740363048526,-500.0,0.0001652,2]
[354245620,1740363048536,-792.18,0.0001652,2]
[354245621,1740363048546,-500.0,0.0001652,2]
[354245622,1740363048556,-500.0,0.0001652,2]
[354245623,1740363048566,-625.69,0.0001652,2]
[354245624,1740363048577,-500.0,0.0001652,2]
[354245625,1740363048587,-500.0,0.0001652,2]
[354245626,1740363048596,-500.0,0.0001652,2]
[354245627,1740363048606,-208.94035959,0.0001652,2]
[354245628,1740363048619,-291.05964041,0.0001652,2]
[354245629,1740363048628,-708.94035959,0.0001652,2]
[354245630,1740363048641,-14.61964041,0.0001652,2]
[354245631,1740363048651,-500.0,0.0001652,2]
[354245632,1740363048661,-122.03035959,0.0001652,2]
[354245633,1740363048672,-973.08964041,0.0001652,2]
[354245634,1740363048682,-500.0,0.0001652,2]
[354245635,1740363048692,-520.3928952,0.0001652,2]
[354245636,1740363048701,-504.45675038,0.0001652,2]
[354245637,1740363048711,-500.0,0.0001652,2]
[354245638,1740363048721,-500.0,0.0001652,2]
[354245639,1740363048731,-666.69,0.0001652,2]
[354245640,1740363048741,-500.0,0.0001652,2]
[354245641,1740363048752,-500.0,0.0001652,2]
[354245642,1740363048761,-500.0,0.0001652,2]
[354245643,1740363048771,-539.4,0.0001652,2]
[354245644,1740363048781,-504.26309437,0.0001652,2]
[354245645,1740363048790,-500.0,0.0001652,2]
[354245646,1740363048799,-503.63875667,0.0001652,2]
[354245647,1740363048808,-500.0,0.0001652,2]
[354245648,1740363048818,-620.94,0.0001652,2]
[354245649,1740363048827,-584.18,0.0001652,2]
[354245650,1740363048837,-979.55,0.0001652,2]
[354245651,1740363048846,-575.64,0.0001652,2]
[354245652,1740363048856,-500.0,0.0001652,2]
[354245653,1740363048866,-500.0,0.0001652,2]
[354245654,1740363048875,-500.0,0.0001652,2]
[354245655,1740363048885,-1036.05,0.0001652,2]
[354245656,1740363048894,-540.42065313,0.0001652,2]
[354245657,1740363048904,-151.903581,0.0001652,2]
[354245658,1740363048913,-649.27,0.0001652,2]
[354245659,1740363048923,-500.0,0.0001652,2]
[354245660,1740363048933,-500.0,0.0001652,2]
[354245661,1740363048943,-500.0,0.0001652,2]
[354245662,1740363048952,-809.35,0.0001652,2]
[354245663,1740363048962,-504.91893784,0.0001652,2]
[354245664,1740363048971,-500.0,0.0001652,2]
[354245665,1740363048981,-500.0,0.0001652,2]
[354245666,1740363048990,-1286.52,0.0001652,2]
[354245667,1740363048999,-247.05642594,0.0001652,2]
[354245668,1740363049009,-1245.53,0.0001652,2]
[354245669,1740363049018,-544.61,0.0001652,2]
[354245670,1740363049028,-500.0,0.0001652,2]
[354245671,1740363049037,-500.0,0.0001652,2]
[354245672,1740363049046,-614.16,0.0001652,2]
[354245673,1740363049055,-577.25385774,0.0001652,2]
[354245674,1740363049065,-505.77889306,0.0001652,2]
[354245675,1740363049074,-500.0,0.0001652,2]
[354245676,1740363049083,-500.0,0.0001652,2]
[354245677,1740363049092,-500.0,0.0001652,2]
[354245678,1740363049101,-1066.72,0.0001652,2]
[354245679,1740363049111,-686.64,0.0001652,2]
[354245680,1740363049120,-505.48197965,0.0001652,2]
[354245681,1740363049129,-450.0,0.0001652,2]
[354245682,1740363049139,-502.06,0.0001652,2]
[354245683,1740363049148,-673.75,0.0001652,2]
[354245684,1740363049158,-500.0,0.0001652,2]
[354245685,1740363049167,-500.0,0.0001652,2]
[354245686,1740363049177,-549.82,0.0001652,2]
[354245687,1740363049187,-500.0,0.0001652,2]
[354245688,1740363049196,-503.09747651,0.0001652,2]
[354245689,1740363049206,-732.43,0.0001652,2]
[354245690,1740363049215,-500.0,0.0001652,2]
[354245691,1740363049225,-717.01,0.0001652,2]
[354245692,1740363049234,-500.0,0.0001652,2]
[354245693,1740363049244,-570.96,0.0001652,2]
[354245694,1740363049253,-500.0,0.0001652,2]
[354245695,1740363049263,-500.0,0.0001652,2]
[354245696,1740363049272,-325.80753383,0.0001652,2]
[354245697,1740363049281,-1042.97,0.0001652,2]
[354245698,1740363049290,-504.75601966,0.0001652,2]
[354245699,1740363049300,-504.77903173,0.0001652,2]
[354245700,1740363049310,-500.0,0.0001652,2]
[354245701,1740363049320,-630.22,0.0001652,2]
[354245702,1740363049329,-924.18,0.0001652,2]
[354245703,1740363049339,-500.0,0.0001652,2]
[354245704,1740363049349,-1022.64,0.0001652,2]
[354245705,1740363049359,-500.0,0.0001652,2]
[354245706,1740363049368,-500.0,0.0001652,2]
[354245707,1740363049378,-710.14,0.0001652,2]
[354245708,1740363049388,-500.0,0.0001652,2]
[354245709,1740363049398,-535.51,0.0001652,2]
[354245710,1740363049407,-500.0,0.0001652,2]
[354245711,1740363049417,-500.0,0.0001652,2]
[354245712,1740363049426,-500.0,0.0001652,2]
[354245713,1740363049436,-500.0,0.0001652,2]
[354245714,1740363049446,-500.0,0.0001652,2]
[354245715,1740363049455,-2132.42,0.0001652,2]
[354245716,1740363049465,-152.22359677,0.0001652,2]
[354245717,1740363049474,-515.04,0.0001652,2]
[354245718,1740363049484,-500.0,0.0001652,2]
[354245719,1740363049493,-500.0,0.0001652,2]
[354245720,1740363049503,-887.96,0.0001652,2]
[354245721,1740363049512,-500.0,0.0001652,2]
[354245722,1740363049522,-500.0,0.0001652,2]
[354245723,1740363049531,-999.05,0.0001652,2]
[354245724,1740363049540,-953.25,0.0001652,2]
[354245725,1740363049549,-523.12,0.0001652,2]
[354245726,1740363049558,-504.99288632,0.0001652,2]
[354245727,1740363049568,-500.0,0.0001652,2]
[354245728,1740363049579,-571.21,0.0001652,2]
[354245729,1740363049588,-500.0,0.0001652,2]
[354245730,1740363049598,-500.0,0.0001652,2]
[354245731,1740363049607,-500.0,0.0001652,2]
[354245732,1740363049616,-500.0,0.0001652,2]
[354245733,1740363049627,-500.0,0.0001652,2]
[354245734,1740363049636,-699.96,0.0001652,2]
[354245735,1740363049645,-500.0,0.0001652,2]
[354245736,1740363049654,-843.86,0.0001652,2]
[354245737,1740363049663,-856.53,0.0001652,2]
[354245738,1740363049673,-505.73127914,0.0001652,2]
[354245739,1740363049683,-568.96,0.0001652,2]
[354245740,1740363049692,-500.0,0.0001652,2]
[354245741,1740363049701,-514.92,0.0001652,2]
[354245742,1740363049710,-1288.17,0.0001652,2]
[354245743,1740363049720,-603.36,0.0001652,2]
[354245744,1740363049729,-500.0,0.0001652,2]
[354245745,1740363049738,-884.41,0.0001652,2]
[354245746,1740363049748,-568.71,0.0001652,2]
[354245747,1740363049758,-500.0,0.0001652,2]